Cogmind - Beta 9.4 @@@ ROGUE MODE // 2020.01.29 @ 12:56:36 Player: Sebastian Result: Destroyed by G-34 Mercenary with Small Laser Performance ------------- Evolutions (1) 500 Regions Visited (3) 600 Robots Destroyed (33) 165 Value Destroyed (704) 704 Prototype IDs (0) 0 Alien Tech Used (0) 0 Bonus (0) 0 TOTAL SCORE: 1969 Bonus ------- None Cogmind --------- Core Integrity 0/400 Matter 7/300 Energy 97/100 System Corruption 1% Temperature Cool (6) Movement Core (150) Ox2 Location -9/Materials Parts ------- > --- POWER (1) -------- (None) > --- PROPULSION (3) --- (None) > --- UTILITY (3) ------ Medium Storage Unit Improved Signal Interpreter > --- WEAPON (2) ------- (None) > --- INVENTORY (8) ---- Improved Heat Sink Structural Scanner Utility Shielding Light Cannon Light Cannon Peak State ------------ > --- POWER ------------ Light Angular Momentum Engine > --- PROPULSION ------- Aluminum Leg Aluminum Leg > --- UTILITY ---------- Medium Storage Unit Sensor Array Improved Signal Interpreter > --- WEAPON ----------- Light Cannon Light Cannon > --- INVENTORY -------- Light Nuclear Core Improved Heat Sink High-capacity Matter Pod Utility Shielding Beam Cannon Light Cannon Light Cannon Grenade Launcher [Rating: 14] Favorites ----------- Power Light Angular Momentum Engine Engine Light Angular Momentum Engine Power Core Light Nuclear Core Propulsion Aluminum Leg Leg Aluminum Leg Wheel Wheel Utility Sensor Array Device Sensor Array Storage Medium Storage Unit Processor Improved Signal Interpreter Protection Utility Shielding Weapon Light Cannon Energy Gun EM Pulse Gun Energy Cannon Beam Cannon Ballistic Gun Heavy Assault Rifle Ballistic Cannon Light Cannon Launcher Grenade Launcher Build | -11 -10 -10 -9 ------- Run | Scr Mat Min Mat Slots Evolved 2 | . . . 2 Power . | . . . . Propulsion 1 | . . . 1 Utility 1 | . . . 1 Weapon . | . . . . Parts Attached 46 | 10 19 3 14 Power 7 | 1 3 2 1 Engine 5 | 1 3 1 . Core 2 | . . 1 1 Reactor . | . . . . Propulsion 9 | 7 1 1 . Treads . | . . . . Leg 7 | 5 1 1 . Wheel 2 | 2 . . . Hover . | . . . . Flight . | . . . . Utility 9 | . 5 . 4 Device 5 | . 4 . 1 Storage 1 | . 1 . . Processor 1 | . . . 1 Hackware . | . . . . Protection 2 | . . . 2 Artifact . | . . . . Weapon 21 | 2 10 . 9 Energy Gun 2 | 1 1 . . Energy Cannon 3 | . 2 . 1 Ballistic Gun 5 | 1 3 . 1 Ballistic Cannon 6 | . 2 . 4 Launcher 5 | . 2 . 3 Special Weapon . | . . . . Impact Weapon . | . . . . Slashing Weapon . | . . . . Piercing Weapon . | . . . . Special Melee Weapon . | . . . . Unidentified Prototypes . | . . . . Parts Lost 11 | . . . 11 Power 2 | . . . 2 Propulsion 2 | . . . 2 Utility 2 | . . . 2 Weapon 5 | . . . 5 Highest Loss Streak 7 | . . . 7 Average Slot Usage (%) 90 | . 91 100 75 Engine 9 | . 14 11 3 Core 2 | . . 2 6 Leg 23 | . 28 28 14 Device 11 | . 14 14 6 Storage 10 | . 5 14 11 Processor 2 | . . . 9 Protection 1 | . . . 4 Energy Cannon 2 | . 8 . . Ballistic Gun 3 | . 7 . 5 Ballistic Cannon 17 | . 2 28 14 Launcher 2 | . 7 . . Naked Turns . | . . . . Heaviest Build 25 | 7 20 24 25 Greatest Support 20 | 20 20 20 20 Greatest Overweight (x) 6 | . . 1 6 Average Overweight (x) . | . . . 1 Largest Inventory Capacity 8 | 4 8 8 8 Average Capacity 7 | 4 5 8 8 Most Carried 8 | 4 8 8 8 Average Carried 6 | 1 3 7 7 Final Capacity 8 | 4 8 8 8 Final Carried 8 | 3 7 8 5 Class Distribution -------------------- 66% | Scavenger-Mutant 33% | Mutant Dominant Class ---------------- Scavenger-Mutant | -10/Materials Scavenger-Mutant | -10/Mines Mutant | -9/Materials Resources | -11 -10 -10 -9 ----------- Run | Scr Mat Min Mat Matter Collected 727 | 282 154 221 70 Remotely . | . . . . Salvage Created 765 | 42 424 131 168 Parts 67 | 2 42 11 12 Haulers Intercepted 1 | . 1 . . Recyclers Shooed 1 | . 1 . . Parts Field Recycled . | . . . . Retrieved Matter . | . . . . Parts Self-Destructed . | . . . . Prevented . | . . . . Kills | -11 -10 -10 -9 ------- Run | Scr Mat Min Mat Combat Hostiles Destroyed 26 | 1 11 6 8 Guns 1 | 1 . . . Cannons 17 | . 6 6 5 AOE 8 | . 5 . 3 Classes Destroyed 7 | 1 4 . 2 Builder 1 | . . . 1 Hauler 1 | . 1 . . Recycler 2 | . 2 . . Watcher 3 | . 3 . . Swarmer 14 | . 8 3 3 Grunt 9 | 1 3 3 2 Sentry 3 | . . . 3 Best Kill Streak 12 | 1 12 3 5 Combat Bots Only 5 | 1 5 3 5 Max Kills in Single Turn 3 | 1 2 1 3 Gunslinging . | . . . . Exploded 3 | . 2 . 3 Melee . | . . . . Uniques/NPCs Destroyed . | . . . . Combat | -11 -10 -10 -9 -------- Run | Scr Mat Min Mat Damage Taken 1867 | 47 368 101 1351 Core 488 | . 70 18 400 Absorbed by Shields . | . . . . Core Remaining (%) 82 | 100 . 64 . Volleys Fired 81 | 4 35 9 33 Largest 2 | 2 2 2 2 Hottest 100 | 60 100 70 70 Shots Fired 140 | 8 50 18 64 Gun 43 | 8 18 . 17 Cannon 87 | . 27 18 42 Launcher 10 | . 5 . 5 Special . | . . . . Kinetic 94 | 4 14 18 58 Thermal 32 | . 31 . 1 Explosive 10 | . 5 . 5 Electromagnetic 4 | 4 . . . Robot Hit Streak 9 | 2 3 3 9 Robot Miss Streak 5 | 1 3 4 5 Penetration Max . | . . . . Secondary Targets . | . . . . Shots Hit Robots 65 | 4 22 7 32 Core Hits 43 | 2 21 6 14 Critical Hits . | . . . . Critical Kills . | . . . . Critical Parts Destroyed . | . . . . Melee Attacks . | . . . . Impact . | . . . . Slashing . | . . . . Piercing . | . . . . Sneak Attacks . | . . . . Combat Hostiles . | . . . . Follow-up Attacks . | . . . . Damage Inflicted 1746 | 39 629 193 885 Guns 253 | 39 70 . 144 Cannons 983 | . 279 193 511 Explosions 497 | . 270 . 227 Melee . | . . . . Ramming 13 | . 10 . 3 Kinetic 920 | 24 48 193 655 Thermal 301 | . 301 . . Explosive 497 | . 270 . 227 Electromagnetic 15 | 15 . . . Impact . | . . . . Slashing . | . . . . Piercing . | . . . . Highest Corruption 1 | . . . 1 Average Corruption 1 | . . . 1 Corruption Purged . | . . . . Overload Shots . | . . . . Overflow Damage 2 | . . . 2 Projectiles 2 | . . . 2 Explosions . | . . . . Melee . | . . . . Knockbacks 6 | . . 3 3 Impact . | . . . . Kinetic 6 | . . 3 3 Secondary . | . . . . Self-Inflicted Damage 24 | . 16 . 8 Shots 2 | . 1 . 1 Rammed 5 | . 1 . 4 Targets Rammed 5 | . 1 . 4 Kicked . | . . . . Crushed . | . . . . Highest Temperature 102 | 24 102 75 61 Average Temperature 28 | 16 30 32 26 Received Heat Transfer 579 | 24 12 30 513 Siege Activations . | . . . . Robots Corrupted . | . . . . Combat Hostiles . | . . . . Parts Fried . | . . . . Impact Corruptions . | . . . . Robots Melted . | . . . . Combat Hostiles . | . . . . Parts Melted . | . . . . Heat Transferred 642 | . 642 . . Parts Sabotaged . | . . . . Parts Stolen . | . . . . Parts Stripped . | . . . . Power Chain Reactions . | . . . . Missiles Intercepted . | . . . . Alert | -11 -10 -10 -9 ------- Run | Scr Mat Min Mat Peak Influence 346 | 20 346 191 239 Average Influence 127 | 2 204 103 118 Maximum Alert Level 1 | . 1 . 1 Low Security (%) 82 | 100 51 100 82 Level 1 17 | . 48 . 17 Level 2 . | . . . . Level 3 . | . . . . Level 4 . | . . . . Level 5 . | . . . . High Security . | . . . . Max Security . | . . . . Squads Dispatched 3 | . 2 . 1 Investigation . | . . . . Extermination . | . . . . Reinforcement 3 | . 2 . 1 Assault . | . . . . Garrison . | . . . . Intercept . | . . . . Construction Impeded 1 | . . . 1 Haulers Reinforced . | . . . . Stealth | -11 -10 -10 -9 --------- Run | Scr Mat Min Mat Distress Signals 3 | . 2 . 1 Communications Jammed . | . . . . Distress Signals . | . . . . Times Spotted 42 | 1 19 6 16 Peak Tracking Total 6 | 1 6 3 4 Tactical Retreats 2 | . . 1 1 Traps | -11 -10 -10 -9 ------- Run | Scr Mat Min Mat Traps Triggered . | . . . . Indirectly . | . . . . Trap Hack Attempts . | . . . . Triggered . | . . . . Disarmed . | . . . . Reprogrammed . | . . . . Reused . | . . . . Traps Extracted . | . . . . Installed . | . . . . Triggered . | . . . . Machines | -11 -10 -10 -9 ---------- Run | Scr Mat Min Mat Machines Disabled 3 | . 2 . 1 Max in Single Turn 1 | . 1 . 1 Machines Sabotaged . | . . . . Garrisons Compromised . | . . . . Overloaded Fab Kills . | . . . . Fab Network Shutdowns . | . . . . Hacking | -11 -10 -10 -9 --------- Run | Scr Mat Min Mat Machines Accessed 3 | . 1 . 2 Terminals 3 | . 1 . 2 Fabricators . | . . . . Repair Stations . | . . . . Recycling Units . | . . . . Scanalyzers . | . . . . Garrison Access . | . . . . Total Hacks 11 | . 1 . 10 Successful 6 | . . . 6 Failed 5 | . 1 . 4 Catastrophic . | . . . . Database Lockouts . | . . . . Manual . | . . . . Terminals 11 | . 1 . 10 Fabricators . | . . . . Repair Stations . | . . . . Recycling Units . | . . . . Scanalyzers . | . . . . Garrison Access . | . . . . Terminal Hacks 6 | . . . 6 Record 6 | . . . 6 Fabricator Hacks . | . . . . Repair Station Hacks . | . . . . Recycling Unit Hacks . | . . . . Scanalyzer . | . . . . Garrison Access Hacks . | . . . . Unauthorized Hacks . | . . . . Terminals . | . . . . Fabricators . | . . . . Repair Stations . | . . . . Recycling Units . | . . . . Scanalyzers . | . . . . Garrison Access . | . . . . Data Cores Recovered . | . . . . Used . | . . . . Hacking Detections 2 | . . . 2 Full Trace Events 2 | . . . 2 Feedback Events . | . . . . Feedback Blocked . | . . . . Robot Schematics Acquired . | . . . . Robots Built . | . . . . Matter . | . . . . Time . | . . . . Total Robot Build Rating . | . . . . Part Schematics Acquired . | . . . . Parts Built . | . . . . Matter . | . . . . Time . | . . . . Total Part Build Rating . | . . . . Parts Repaired . | . . . . Time . | . . . . Parts Recycled . | . . . . Recycled Matter . | . . . . Retrieved Matter . | . . . . Retrieved Components . | . . . . Parts Scanalyzed . | . . . . Part Schematics Acquired . | . . . . Parts Damaged . | . . . . Bothacking | -11 -10 -10 -9 ------------ Run | Scr Mat Min Mat Used RIF Installer . | . . . . Robots Hacked . | . . . . Non-combat . | . . . . Combat . | . . . . Robot Hacks Applied . | . . . . Relay Couplers Released . | . . . . Robots Rewired . | . . . . Allies Hacked . | . . . . Hacks Repelled . | . . . . Allies | -11 -10 -10 -9 -------- Run | Scr Mat Min Mat Total Allies 1 | . . 1 . Largest Group 1 | . . 1 . Highest-Rated Group 31 | . . 31 . Highest-Rated Ally 31 | . . 31 . Total Orders . | . . . . Ally Attacks 3 | . . 3 . Total Damage 40 | . . 40 . Kills . | . . . . Allies Corrupted . | . . . . Allies Melted . | . . . . Intel | -11 -10 -10 -9 ------- Run | Scr Mat Min Mat Robot Analysis Total . | . . . . Derelict Logs Recovered 2 | . . 2 . Drone Launches . | . . . . Drone Recoveries . | . . . . Exploration | -11 -10 -10 -9 ------------- Run | Scr Mat Min Mat Turns Passed 1609 | 109 416 653 431 Spaces Moved 925 | 78 236 421 190 Core 50 | 25 . . 25 Treads . | . . . . Legs 875 | 53 236 421 165 Wheels . | . . . . Hover . | . . . . Flight . | . . . . Fastest Speed 50 | 50 120 120 120 Average Speed 136 | 97 120 143 156 Slowest Speed 350 | 120 120 150 350 Overloaded Moves . | . . . . Propulsion Burnouts . | . . . . Robots Hopped . | . . . . Cave-ins Triggered . | . . . . Exploration Rate (%) 39 | 6 49 83 20 Regions Visited 3 Branch Regions 1 Pre-discovered Areas 1 | . . 1 . Known Exits Taken . | . . . . Unknown Exits Taken 3 | 1 1 1 . Scrap Searched 1 | . . 1 . Spaces Dug 7 | . . . 7 Terrain Destroyed 48 | . 23 . 25 Melee . | . . . . Projectile . | . . . . AOE 48 | . 23 . 25 Actions | -11 -10 -10 -9 --------- Run | Scr Mat Min Mat Total 1125 | 105 319 451 250 Wait 14 | 1 1 8 4 Move 922 | 77 235 420 190 Hop . | . . . . Pick Up 34 | 8 16 6 4 Fast Attach . | . . . . Attach 21 | 10 5 . 6 Detach 7 | 5 2 . . Swap 25 | . 14 3 8 Drop 16 | . 10 5 1 Fire 81 | 4 35 9 33 Melee . | . . . . Ram 4 | . . . 4 Kick 1 | . 1 . . Crush . | . . . . Escape Stasis . | . . . . Rewire . | . . . . Trap . | . . . . Miscellaneous . | . . . . Route ------- -11/Scrapyard -10/Materials -10/Mines (discovered 2 exits: *Mat x2) -9/Materials (discovered 1 exit: Sto) History --------- Turn | Location | Event 2 | -11/Scrapyard | Met Revision 17 83 | -11/Scrapyard | Discovered new exit (range 8) 110 | -11/Scrapyard | Entered Materials 287 | -10/Materials | Discovered new exit (range 7) 526 | -10/Materials | Entered Mines 539 | -10/Mines | Escorted by a lone wolf Derelict 552 | -10/Mines | Met a Derelict bent on vengeance 559 | -10/Mines | Learned location of Storage (-9) 578 | -10/Mines | Build established: Scavenger-Mutant 613 | -10/Mines | Learned 2 Materials zone layouts 624 | -10/Mines | Discovered new exit (range 11) 1132 | -10/Mines | Discovered new exit (range 5) 1179 | -10/Mines | Entered Materials 1179 | -9/Materials | Evolved 2 slots: Propulsion x1, Utility x1 1180 | -9/Materials | Identified exit to Storage 1555 | -9/Materials | Core integrity fell below 50% 1601 | -9/Materials | Core integrity fell below 20% 1610 | -9/Materials | Destroyed by G-34 Mercenary with Small Laser Last Messages --------------- G-47 Trooper destroyed. R-06 Scavenger collects Aluminum Leg. G-34 Mercenary knocked back. Destroyed Sml. Laser. G-34 Mercenary destroyed. [Achievement: Oops] Slammed into U-05 Engineer. U-05 Engineer builds a Door. Lgt. Nuclear Core destroyed. Slammed into Y-45 Defender. Destabilizing: System corrupted (+1). Slammed into Y-45 Defender. Hvy. Assault Rifle destroyed. Lgt. Cannon destroyed. Slammed into Y-45 Defender. Sensor Array destroyed. Beam Cannon destroyed. Grenade Launcher destroyed. Lgt. Cannon destroyed. [Achievement: First Step to Greatness] Map ----- +----------------------------------------------------+ | | | | | | | | | ########?#########################???????????????? | | #?# ##!! """ #???????????????? | | #?# ##!! """ #???????????????? | | "" #?# """ """ ##!! """ #???????????????? | | "" #?# """"""""" ## ###########?????? | | "" "T" #?# """" ## # #?????? | | """ #?# ## # #?????? | | +###############/#############+### #?????? | | / #?????? | | ########### ## #?????? | | # """ """ + ## #?????? | | +######+####### # """ """ # ## #?????? | | #????#???# # """ """ # ## = #?????? | | """" #????#???# # g ######/#####?????? | | """" #????#???# + #### #???????? | | """" #????#???# # #???????? | | #????#???# # #???????? | | """" #????#???# # ! Y !# #???????? | | """" #????#???# ###### ######### #???????? | | """" #????#???# #??# ## ########?? | | #????#???# #??# ## "# T #?? | | ##+###????#???# #??# @ # %%# #?? | | ?# #??????????# #??# ## ="/ """#?? | | ?# #??????????# #??# == ## # """#?? | | ?# #?????????## ##?# == ## # """#?? | | ?# #?????????????????###+######+####? ?????????? | | # # ?????????????????????????? ??? ?????????? | | "????????????????????????? ?? ?????????? | | % """???????????????????????? ?????????????? | | """"????????????????????????##?????????????? | | """???????????????????????????????????????? | | % =# ???????????????????????????????????????? | | =%# ???????????????????????????????????????? | | !# ???????????????????????????????????????? | | # [ ??????????????????????????????????????? | | #?######?????????????????????????????????????? | | ????????????????????????????????????????????? | | ????????????????????????????????????????????? | | "Y" ????????????????????????????????????????????? | | """ ????????????????????????????????????????????? | | #???#????????????????????????????????????????????? | | ?????????????????????????????????????????????????? | | ?????????????????????????????????????????????????? | | ?????????????????????????????????????????????????? | | ?????????????????????????????????????????????????? | | ?????????????????????????????????????????????????? | +----------------------------------------------------+ Best States ------------- Heat Dissipation 35 Energy Generation 18 Energy Capacity 250 Matter Stores 300 Matter Capacity 300 Sight Range 16 Robot Scan Range 10 Terrain Scan Range 14 Terrain Scan Density 10 Utility Shielding 33 Evasion (%) 50 Item Schematics ----------------- None Robot Schematics ------------------ None Fabricated ------------ Nothing Alien Tech Used ----------------- None Achievements -------------- First Step to Greatness Loot Pinata Oops Storm Trooper Uninvited Guest Challenges ------------ None Game ------ Seed HackingSlugAutohacker Manual? 0 Play Time 02:05:49 Cumulative 4.1 hours Start 2020.01.29 @ 09:39:49 End 2020.01.29 @ 12:56:36 Sessions 1 Manual Loads 0 Difficulty Rogue Special Mode None Game No. 2 Rogue 2 Adventurer 0 Explorer 0 Win Type - Total 0 Types 0/0/0/0/0/0/0 Lore% 1 Gallery% 2 Achievement% 1 Wizard Run 0 Options --------- ASCII 1 Keyboard 0 Movement Numpad Keybinds 0 Fullscreen 1 Font 18/SmallcapsGlow Map View 76x50 Tactical HUD 0 Map Filters NONE Filters NONE Steam 1 RUN: 817ff659-5be1-48e7-900d-e1fba14a5608